bitfinex-derivatives/quotes_BTCF0:USTF0_20250703
["timestamp","ask_amount","ask_price","bid_price","bid_amount"]
[1751542095740,1.8161249,109730.0,109720.0,0.22625055]
[1751542096340,1.8161249,109730.0,109720.0,0.04402395]
[1751542097042,1.8161249,109730.0,109720.0,0.22625055]
[1751542098037,1.79954096,109730.0,109720.0,0.22625055]
[1751542098241,1.81611769,109730.0,109720.0,0.22625055]
[1751542098541,1.81611769,109730.0,109720.0,0.22625421]
[1751542099137,1.81611769,109730.0,109720.0,0.25359616]
[1751542099343,1.81611769,109730.0,109720.0,0.05712298]
[1751542099644,1.81611769,109730.0,109720.0,0.07136956]
[1751542100840,1.81611769,109730.0,109720.0,0.15101617]
[1751542101041,1.81611769,109730.0,109720.0,0.33324277]
[1751542101344,1.81623925,109730.0,109720.0,0.33324277]
[1751542103248,1.81623925,109730.0,109720.0,0.15101617]
[1751542103647,1.79954096,109730.0,109720.0,0.15101617]
[1751542103849,1.79954096,109730.0,109720.0,0.08561617]
[1751542104146,1.81601439,109730.0,109720.0,0.08561617]
[1751542107658,1.81601439,109730.0,109720.0,0.0856162]
[1751542116866,1.81601439,109730.0,109720.0,0.08561635]
[1751542127065,0.98685439,109730.0,109720.0,0.08561635]
[1751542127366,1.81553439,109730.0,109720.0,0.12207459]
[1751542129976,1.81553439,109730.0,109720.0,0.30430099]
[1751542131976,1.81553439,109730.0,109720.0,0.29005423]
[1751542133379,0.98685439,109730.0,109720.0,0.29005423]
[1751542133574,1.81541439,109730.0,109720.0,0.29005423]
[1751542139184,1.81541439,109730.0,109720.0,0.25359599]
[1751542140184,1.81541439,109730.0,109720.0,0.07136959]
[1751542140485,1.87001529,109730.0,109720.0,0.07136959]
[1751542141081,1.87001529,109730.0,109720.0,0.0713697]
[1751542141486,1.87001529,109730.0,109720.0,0.2535961]
[1751542141686,1.87001529,109730.0,109720.0,0.0713697]
[1751542143588,1.87001529,109730.0,109720.0,0.2535961]
[1751542143887,1.90111529,109730.0,109720.0,0.2535961]
[1751542144188,1.90111529,109730.0,109720.0,0.25364173]
[1751542144388,1.90111529,109730.0,109720.0,0.07141533]
[1751542149192,1.84651439,109730.0,109720.0,0.10787357]
[1751542155399,1.84651439,109730.0,109720.0,0.29009997]
[1751542159199,1.84601439,109730.0,109720.0,0.29009997]
[1751542159889,1.8457884,109730.0,109720.0,0.29009997]
[1751542162402,1.8457884,109730.0,109720.0,0.30434671]
[1751542163503,1.84589442,109730.0,109720.0,0.30434671]
[1751542169109,1.84589442,109730.0,109720.0,0.26788847]
[1751542169310,1.84589442,109730.0,109720.0,0.08566207]
[1751542170613,1.84589442,109730.0,109720.0,0.26788847]
[1751542172213,1.84589442,109730.0,109720.0,0.08566207]
[1751542180925,1.84589442,109730.0,109720.0,0.08562389]
[1751542181827,1.35305886,109730.0,109720.0,0.08562389]
[1751542182026,1.84589442,109730.0,109720.0,0.08562389]
[1751542184631,2.19589442,109730.0,109720.0,0.08562389]
[1751542187428,2.19589442,109730.0,109720.0,0.03149346]
[1751542187630,2.19589442,109730.0,109720.0,0.08562482]
[1751542187831,2.19610222,109730.0,109720.0,0.08562482]
[1751542188128,2.19510222,109730.0,109720.0,0.08362482]
[1751542188329,2.19610222,109730.0,109720.0,0.08562482]
[1751542188529,0.1822264,109720.0,109710.0,0.0018229]
[1751542188726,1.52680153,109720.0,109710.0,0.09412963]
[1751542188931,2.58540153,109720.0,109710.0,0.04342424]
[1751542189228,2.61550153,109720.0,109710.0,0.01607005]
[1751542189630,2.61550153,109720.0,109710.0,0.01807005]
[1751542190432,2.61850153,109720.0,109710.0,0.01907005]
[1751542191131,2.62050153,109720.0,109710.0,0.01707005]
[1751542191336,2.47515625,109720.0,109710.0,0.01707005]
[1751542192631,2.47515625,109720.0,109710.0,0.0028229]
[1751542194133,1.41655625,109720.0,109710.0,0.0028229]
[1751542194337,2.47515625,109720.0,109710.0,0.0028229]
[1751542195837,2.47565016,109720.0,109710.0,0.0028229]
[1751542199336,2.45887974,109720.0,109710.0,0.0028229]
[1751542199542,2.47524435,109720.0,109710.0,0.0028229]
[1751542200541,2.47524435,109720.0,109710.0,0.01707157]
[1751542208046,2.45887974,109720.0,109710.0,0.01707157]
[1751542208647,2.47527794,109720.0,109710.0,0.01707157]
[1751542211749,2.45887974,109720.0,109710.0,0.01707157]
[1751542211948,2.47549404,109720.0,109710.0,0.01707157]
[1751542213155,2.47549404,109720.0,109710.0,0.01707185]
[1751542215256,0.182243,109710.0,109700.0,0.00520236]
[1751542215450,1.31486412,109710.0,109700.0,0.00520236]
[1751542215851,0.82202856,109710.0,109700.0,0.00520236]
[1751542216057,1.31486412,109710.0,109700.0,0.00520236]
[1751542216660,1.31786412,109710.0,109700.0,0.00620236]
[1751542216961,1.31786412,109710.0,109700.0,0.00720236]
[1751542217757,1.31886412,109710.0,109700.0,0.00620236]
[1751542226362,0.19873533,109700.0,109690.0,0.00475238]
[1751542226560,0.1822761,109690.0,109680.0,0.02735238]
[1751542226765,1.02511166,109690.0,109680.0,0.05975238]
[1751542226958,1.02511166,109690.0,109680.0,0.08995238]
[1751542227366,1.08771166,109690.0,109680.0,0.07685131]
[1751542227565,1.11781166,109690.0,109680.0,0.07685131]
[1751542227765,1.19019608,109690.0,109680.0,0.07885131]
[1751542228969,1.19019608,109690.0,109680.0,0.07985131]
[1751542229966,1.19019608,109690.0,109680.0,0.07985132]
[1751542230568,1.19019608,109690.0,109680.0,0.01725132]
[1751542230766,1.19952818,109690.0,109680.0,0.01725132]
[1751542231369,1.19952818,109690.0,109680.0,0.01725135]
[1751542232270,1.43036818,109690.0,109680.0,0.01725135]
[1751542233571,1.67678596,109690.0,109680.0,1e-08]
[1751542233764,0.1822927,109680.0,109670.0,0.00182357]
[1751542234065,2.23033106,109680.0,109670.0,0.00182357]
[1751542234764,1.49107772,109680.0,109670.0,0.00182357]
[1751542234969,2.23233106,109680.0,109670.0,0.00182357]
[1751542235776,1.49307772,109680.0,109670.0,0.00182357]
[1751542235977,1.98591328,109680.0,109670.0,0.18413297]
[1751542236176,2.18681328,109680.0,109670.0,0.24803297]
[1751542236380,2.18681328,109680.0,109670.0,0.28033297]
[1751542236581,2.18703673,109680.0,109670.0,0.28033297]
[1751542237079,2.12103673,109680.0,109670.0,0.28033297]
[1751542238680,2.21273673,109680.0,109670.0,0.00282357]
[1751542240085,1.7033527,109680.0,109670.0,0.18513297]
[1751542240275,2.19618826,109680.0,109670.0,0.00282357]
[1751542240470,2.21279447,109680.0,109670.0,0.00282357]
[1751542240977,2.21279447,109680.0,109670.0,0.18513287]
[1751542241679,2.21279447,109680.0,109670.0,0.00282357]
[1751542242079,2.21279447,109680.0,109670.0,0.18513297]
[1751542242975,1.14543447,109680.0,109670.0,0.18513297]
[1751542243172,1.14543447,109680.0,109670.0,0.24513297]
[1751542243173,1.89053447,109680.0,109670.0,0.24513297]
[1751542243477,1.89053447,109680.0,109670.0,0.58973297]
[1751542244075,1.05373447,109680.0,109670.0,0.58973297]
[1751542244277,1.89053447,109680.0,109670.0,0.58973297]
[1751542244480,1.05373447,109680.0,109670.0,0.58973297]
[1751542244681,1.89137447,109680.0,109670.0,0.58973297]
[1751542245481,1.89137447,109680.0,109670.0,0.27973297]
[1751542245784,1.64556697,109680.0,109670.0,0.34398523]
[1751542246584,1.64556697,109680.0,109670.0,0.35398523]
[1751542247390,1.64556697,109680.0,109670.0,0.56398523]
[1751542247786,0.37860621,109680.0,109670.0,0.81101329]
[1751542247986,0.37860621,109680.0,109670.0,1.24337329]
[1751542248582,0.37860621,109680.0,109670.0,1.27065219]
[1751542248887,0.37860621,109680.0,109670.0,1.27983153]
[1751542249282,0.37860621,109680.0,109670.0,1.02983153]
[1751542250680,0.20089891,109680.0,109670.0,1.02983153]
[1751542250876,0.32,109680.0,109670.0,1.41655553]
[1751542251086,0.32,109680.0,109670.0,1.46213143]
[1751542251381,0.29924502,109690.0,109680.0,0.1822928]
[1751542251583,0.62924502,109690.0,109680.0,0.85395697]
[1751542251782,0.62924502,109690.0,109680.0,0.78927291]
[1751542252085,0.87627308,109690.0,109680.0,0.78927291]
[1751542252784,0.87627308,109690.0,109680.0,0.60692645]
[1751542252986,0.87627308,109690.0,109680.0,0.62117621]
[1751542254087,0.87827308,109690.0,109680.0,0.62117621]
[1751542257091,0.63124502,109690.0,109680.0,0.62117621]
[1751542257391,0.40338442,109690.0,109680.0,0.62117621]
[1751542257592,0.07338442,109690.0,109680.0,0.62117621]
[1751542257788,0.41338442,109690.0,109680.0,0.62117621]
[1751542257978,0.40338442,109690.0,109680.0,0.6303506]
[1751542258290,0.22338442,109690.0,109680.0,0.87737866]
[1751542258488,0.20338442,109690.0,109680.0,0.87737866]
[1751542258684,0.44338442,109690.0,109680.0,0.87737866]
[1751542258886,0.44338442,109690.0,109680.0,0.6303506]
[1751542259084,0.44338442,109690.0,109680.0,0.87737866]
[1751542260993,0.244556,109710.0,109700.0,0.1822596]
[1751542261287,0.564556,109710.0,109700.0,0.50075916]
[1751542261595,0.81158406,109710.0,109700.0,0.56385916]
[1751542261887,0.76600946,109710.0,109700.0,0.56385916]
[1751542262092,0.77100946,109710.0,109700.0,0.59113656]
[1751542262995,0.5239814,109710.0,109700.0,0.59113656]
[1751542263296,0.77100946,109710.0,109700.0,0.59113656]
[1751542263994,0.77100946,109710.0,109700.0,0.58113656]
[1751542264190,0.77100946,109710.0,109700.0,0.55385916]
[1751542264592,0.5239814,109710.0,109700.0,0.55385916]
[1751542265099,0.77100946,109710.0,109700.0,0.55385916]
[1751542265291,0.77400946,109710.0,109700.0,0.55385916]
[1751542265995,0.80690946,109710.0,109700.0,0.55385916]
[1751542267395,0.80690946,109710.0,109700.0,0.58113656]
[1751542268190,0.80690946,109710.0,109700.0,0.55385916]
[1751542268396,0.80690946,109710.0,109700.0,0.58113656]
[1751542269200,0.80690946,109710.0,109700.0,0.55385916]
[1751542269500,0.80690946,109710.0,109700.0,0.58113656]
[1751542269901,0.83960946,109710.0,109700.0,0.58113656]
[1751542272202,0.5925814,109710.0,109700.0,0.58113656]
[1751542272507,0.83960946,109710.0,109700.0,0.58113656]
[1751542273106,0.83960946,109710.0,109700.0,0.58107888]
[1751542276005,0.87030946,109710.0,109700.0,0.58107888]
[1751542276907,0.6232814,109710.0,109700.0,0.58107888]
[1751542277103,0.87030946,109710.0,109700.0,0.58107888]
[1751542277304,0.6232814,109710.0,109700.0,0.58107888]
[1751542277504,0.5905814,109710.0,109700.0,0.58107888]
[1751542278409,0.6208814,109710.0,109700.0,0.58107888]
[1751542279602,0.86790946,109710.0,109700.0,0.58107888]
[1751542280004,0.86790946,109710.0,109700.0,0.61753712]
[1751542280307,0.86790946,109710.0,109700.0,0.61727251]
[1751542282309,0.6208814,109710.0,109700.0,0.61727251]
[1751542282504,0.86790946,109710.0,109700.0,0.61727251]
[1751542283310,0.6208814,109710.0,109700.0,0.61727251]
[1751542283513,0.86790946,109710.0,109700.0,0.61727251]
[1751542287422,0.86790946,109710.0,109700.0,0.58999511]
[1751542288623,0.86916377,109710.0,109700.0,0.58999511]
[1751542289224,0.86916377,109710.0,109700.0,0.64459152]
[1751542291025,0.86916377,109710.0,109700.0,0.58999511]
[1751542293029,0.62213571,109710.0,109700.0,0.58999511]
[1751542293229,0.86916377,109710.0,109700.0,0.58999511]
[1751542293825,0.86900309,109710.0,109700.0,0.8914589]
[1751542296028,0.86900309,109710.0,109700.0,0.89143044]
[1751542297027,0.85226469,109710.0,109700.0,0.83683403]
[1751542297632,0.85226469,109710.0,109700.0,0.58996665]
[1751542297829,0.85226469,109710.0,109700.0,0.83683403]
[1751542300938,0.85226469,109710.0,109700.0,0.89146575]
[1751542301133,0.85226469,109710.0,109700.0,0.83686934]
[1751542306643,0.60539731,109710.0,109700.0,0.83686934]
[1751542306844,0.85226469,109710.0,109700.0,0.83686934]
[1751542308339,0.85226469,109710.0,109700.0,0.59000196]
[1751542308539,0.85226469,109710.0,109700.0,0.83686934]
[1751542311847,0.85226469,109710.0,109700.0,0.59000196]
[1751542312242,0.85226469,109710.0,109700.0,0.52690196]
[1751542312847,1.09913207,109710.0,109700.0,0.52690196]
[1751542313847,1.09913207,109710.0,109700.0,0.25690196]
[1751542314050,1.09913207,109710.0,109700.0,0.06464236]
[1751542314549,1.09913207,109710.0,109700.0,0.24690196]
[1751542315149,1.09913207,109710.0,109700.0,0.23779212]
[1751542315338,1.09913207,109710.0,109700.0,0.27425036]
[1751542316241,1.09913207,109710.0,109700.0,0.23779212]
[1751542317351,1.09913207,109710.0,109700.0,0.05553252]
[1751542317949,1.09913207,109710.0,109700.0,0.23779212]
[1751542318747,1.09913207,109710.0,109700.0,0.05553252]
[1751542319250,1.09913207,109710.0,109700.0,0.02818412]
[1751542321140,1.09913207,109710.0,109700.0,0.01393693]
[1751542321351,1.34599945,109710.0,109700.0,0.02818613]
[1751542321553,1.34599945,109710.0,109700.0,0.01393693]
[1751542321851,1.09913207,109710.0,109700.0,0.01393693]
[1751542323250,1.34599945,109710.0,109700.0,0.01393693]
[1751542323450,1.09913207,109710.0,109700.0,0.01393693]
[1751542326057,0.60539731,109710.0,109700.0,0.19619653]
[1751542326256,1.92014469,109710.0,109700.0,0.32619653]
[1751542326446,0.39285431,109710.0,109700.0,0.71306391]
[1751542326652,0.75836469,109710.0,109700.0,0.80191231]
[1751542327051,0.57612169,109710.0,109700.0,0.80191231]
[1751542327355,0.57612169,109710.0,109700.0,0.81259744]
[1751542327550,0.57612169,109710.0,109700.0,0.86330254]
[1751542327758,0.75836007,109710.0,109700.0,0.61643516]
[1751542329259,0.75836007,109710.0,109700.0,0.58908676]
[1751542329455,0.75836007,109710.0,109700.0,0.60570838]
[1751542329654,0.82386007,109710.0,109700.0,0.60570838]
[1751542331959,0.57699721,109710.0,109700.0,0.60570838]
[1751542332160,0.82386007,109710.0,109700.0,0.60570838]
[1751542333860,0.82386007,109710.0,109700.0,0.59146152]
[1751542334954,0.79076007,109710.0,109700.0,0.59146152]
[1751542336358,0.80737541,109710.0,109700.0,0.59146152]
[1751542342469,0.77497541,109710.0,109700.0,0.59146152]
[1751542344062,0.77497541,109710.0,109700.0,0.60214722]
[1751542344764,0.77497541,109710.0,109700.0,0.59146142]
[1751542347769,0.77500982,109710.0,109700.0,0.59146142]
[1751542348273,0.87120982,109710.0,109700.0,0.59146142]
[1751542348459,0.87120982,109710.0,109700.0,0.59152068]
[1751542349069,0.87120982,109710.0,109700.0,0.53002068]
[1751542349269,1.11810709,109710.0,109700.0,0.53002068]
[1751542350882,0.87120982,109710.0,109700.0,0.53002068]
[1751542352182,0.87120982,109710.0,109700.0,0.50271393]
[1751542354284,0.87120982,109710.0,109700.0,0.55731034]
[1751542354977,0.87120982,109710.0,109700.0,0.56799615]
[1751542357783,0.87120982,109710.0,109700.0,0.56801488]
[1751542364288,1.11810709,109710.0,109700.0,0.56801488]
[1751542365591,1.11810709,109710.0,109700.0,0.35801488]
[1751542366588,1.11810709,109710.0,109700.0,0.30341847]
[1751542367088,1.11810709,109710.0,109700.0,0.30345443]
[1751542368284,1.11810709,109710.0,109700.0,0.06119493]
[1751542368588,1.95066709,109710.0,109700.0,0.06119493]
[1751542369092,1.95066709,109710.0,109700.0,0.05050912]
[1751542369294,1.95066709,109710.0,109700.0,0.07786064]
[1751542369793,1.95066709,109710.0,109700.0,0.0414024]
[1751542370293,1.95066709,109710.0,109700.0,0.01405088]
[1751542370493,1.95066709,109710.0,109700.0,0.04139916]
[1751542373597,1.11810709,109710.0,109700.0,0.22365866]
[1751542373797,1.95114709,109710.0,109700.0,0.22365866]
[1751542374095,0.87120982,109710.0,109700.0,0.22365866]
[1751542374498,0.87120982,109710.0,109700.0,0.54365866]
[1751542376198,0.87120982,109710.0,109700.0,0.54373526]
[1751542378302,0.87120982,109710.0,109700.0,0.51638698]
[1751542378802,0.87120982,109710.0,109700.0,0.54372577]
[1751542378995,1.11810709,109710.0,109700.0,0.22372577]
[1751542379192,1.11810709,109710.0,109700.0,0.22372587]
[1751542379396,1.11810709,109710.0,109700.0,0.26017759]
[1751542380599,1.11810709,109710.0,109700.0,0.26017964]
[1751542381306,1.11810709,109710.0,109700.0,0.26019028]
[1751542388009,0.62431255,109710.0,109700.0,0.26019028]
[1751542388308,1.11810709,109710.0,109700.0,0.26019028]
[1751542393617,1.11810709,109710.0,109700.0,0.26019509]
[1751542395115,1.11810709,109710.0,109700.0,0.52019509]
[1751542395310,1.11810709,109710.0,109700.0,0.26019509]
[1751542395716,1.11810709,109710.0,109700.0,0.07793549]
[1751542395917,1.11810709,109710.0,109700.0,0.26019499]
[1751542396617,1.11810709,109710.0,109700.0,0.26020152]
[1751542396918,1.11810709,109710.0,109700.0,0.07794202]
[1751542399923,1.11810709,109710.0,109700.0,0.26020152]
[1751542400328,1.11810709,109710.0,109700.0,0.07794202]
[1751542400723,1.11810709,109710.0,109700.0,0.07794501]
[1751542402823,1.11810709,109710.0,109700.0,0.26020451]
[1751542403425,0.62431255,109710.0,109700.0,0.26020451]
[1751542403625,1.11810709,109710.0,109700.0,0.26020451]
[1751542408230,1.11810709,109710.0,109700.0,0.07794501]
[1751542409328,1.11810709,109710.0,109700.0,0.04149329]
[1751542410221,1.11810709,109710.0,109700.0,0.05217978]
[1751542412330,1.11810709,109710.0,109700.0,0.04149329]
[1751542412820,1.11810709,109710.0,109700.0,0.22375279]
[1751542413023,1.11810709,109710.0,109700.0,0.04149329]
[1751542414330,0.62431255,109710.0,109700.0,0.04149329]
[1751542414532,1.11810709,109710.0,109700.0,0.04149329]
[1751542415933,0.60769721,109710.0,109700.0,0.04149329]
[1751542416134,1.10149175,109710.0,109700.0,0.04149329]
[1751542416533,1.11777383,109710.0,109700.0,0.04149329]
[1751542416933,1.17239368,109710.0,109700.0,0.04149329]
[1751542417134,1.11777383,109710.0,109700.0,0.04149329]
[1751542419437,1.10149175,109710.0,109700.0,0.04149329]
[1751542419630,1.11799098,109710.0,109700.0,0.04149329]
[1751542420241,1.11805347,109710.0,109700.0,0.04149329]
[1751542420847,1.11805347,109710.0,109700.0,0.05218027]
[1751542423449,1.95349347,109710.0,109700.0,0.05218027]
[1751542423664,2.16989175,109710.0,109700.0,0.05218027]
[1751542424352,0.1822595,109700.0,109690.0,0.03645172]
[1751542424551,0.1822761,109690.0,109680.0,0.12152931]
[1751542424852,0.19861755,109680.0,109670.0,0.08820116]
[1751542425043,1.33040936,109680.0,109670.0,0.08820116]
[1751542425246,0.1823093,109670.0,109660.0,0.0609]
[1751542425443,1.3869093,109670.0,109660.0,0.0926]
[1751542425643,1.39620547,109670.0,109660.0,0.0926]
[1751542425848,1.39745978,109670.0,109660.0,0.2749259]
[1751542426048,1.04665432,109670.0,109660.0,0.0926]
[1751542426256,0.55285978,109670.0,109660.0,0.1526]
[1751542426455,0.55285978,109670.0,109660.0,0.324926]
[1751542426757,0.79975705,109670.0,109660.0,0.324926]
[1751542427148,0.79046088,109670.0,109660.0,0.324926]
[1751542427350,0.55283694,109670.0,109660.0,0.324926]
[1751542427951,0.79993529,109670.0,109660.0,0.325926]
[1751542428155,0.55283694,109670.0,109660.0,0.325926]
[1751542428354,0.79993529,109670.0,109660.0,0.325926]
[1751542428954,0.79993529,109670.0,109660.0,0.1436]
[1751542429158,0.54356361,109670.0,109660.0,0.325926]
[1751542429450,0.79066196,109670.0,109660.0,0.1436]
[1751542429754,0.79266196,109670.0,109660.0,0.1436]
[1751542430052,0.54556361,109670.0,109660.0,0.1436]
[1751542430256,0.86460129,109670.0,109660.0,0.325926]
[1751542430655,0.61750294,109670.0,109660.0,0.325926]
[1751542430857,0.83460129,109670.0,109660.0,0.565926]
[1751542431050,0.83460129,109670.0,109660.0,0.355926]
[1751542431256,0.83460129,109670.0,109660.0,0.585926]
[1751542431558,0.58750294,109670.0,109660.0,0.585926]
[1751542431759,0.83460129,109670.0,109660.0,0.585926]
[1751542433553,0.58750294,109670.0,109660.0,0.585926]
[1751542433954,0.83460129,109670.0,109660.0,0.585926]
[1751542434650,0.85647662,109670.0,109660.0,0.585926]
[1751542434854,0.85647662,109670.0,109660.0,0.275926]
[1751542435157,0.85647662,109670.0,109660.0,0.355926]
[1751542436259,0.85647662,109670.0,109660.0,0.555926]
[1751542436452,0.85647662,109670.0,109660.0,0.38017892]
[1751542436650,0.85647282,109670.0,109660.0,0.61017892]
[1751542437151,0.60937447,109670.0,109660.0,0.38017892]
[1751542437351,0.85647282,109670.0,109660.0,0.61017892]
[1751542438261,0.85647282,109670.0,109660.0,0.30017892]
[1751542438461,0.92187282,109670.0,109660.0,0.58017892]
[1751542439062,0.92187282,109670.0,109660.0,0.29017892]
[1751542439262,0.92187282,109670.0,109660.0,0.36017892]
[1751542439559,0.92187282,109670.0,109660.0,0.35017892]
[1751542439761,0.67477447,109670.0,109660.0,0.36017892]
[1751542439965,0.92187282,109670.0,109660.0,0.36017892]
[1751542440561,0.67477447,109670.0,109660.0,0.36017892]
[1751542440757,0.92187282,109670.0,109660.0,0.56017892]
[1751542441371,0.67477447,109670.0,109660.0,0.56017892]
[1751542441557,0.67477447,109670.0,109660.0,0.36017892]
[1751542441558,0.92187282,109670.0,109660.0,0.36017892]
[1751542443767,0.92187282,109670.0,109660.0,0.29017892]
[1751542443963,0.92187282,109670.0,109660.0,0.56017892]
[1751542444858,0.90000129,109670.0,109660.0,0.56017892]
[1751542445057,0.95247728,109670.0,109660.0,0.56017892]
[1751542445262,0.70537893,109670.0,109660.0,0.56017892]
[1751542445466,0.95247728,109670.0,109660.0,0.56017892]
[1751542447162,0.70537893,109670.0,109660.0,0.56017892]
[1751542447568,0.95247728,109670.0,109660.0,0.56017893]
[1751542447768,0.9524543,109670.0,109660.0,0.56017893]
[1751542447971,0.9524543,109670.0,109660.0,0.52937893]
[1751542448468,0.70537893,109670.0,109660.0,0.52937893]
[1751542448672,0.9524543,109670.0,109660.0,0.52937893]
[1751542449564,0.9524543,109670.0,109660.0,0.515126]
[1751542449868,0.9524543,109670.0,109660.0,0.52937893]
[1751542450269,0.95247386,109670.0,109660.0,0.52937893]
[1751542451968,0.95247386,109670.0,109660.0,0.22767893]
[1751542451969,1.19954923,109670.0,109660.0,0.22767893]
[1751542452475,1.19954923,109670.0,109660.0,0.19757893]
[1751542453572,1.19954923,109670.0,109660.0,0.20757893]
[1751542453769,1.19954923,109670.0,109660.0,0.20757905]
[1751542453973,1.21637552,109670.0,109660.0,0.20757905]
[1751542454874,1.21641911,109670.0,109660.0,0.20757905]
[1751542456973,1.21643346,109670.0,109660.0,0.20757905]
[1751542457374,1.19960717,109670.0,109660.0,0.20757905]
[1751542460966,1.19960717,109670.0,109660.0,0.193326]
[1751542461167,1.19960717,109670.0,109660.0,0.20757905]
[1751542461371,0.70545643,109670.0,109660.0,0.20757905]
[1751542461567,0.9525318,109670.0,109660.0,0.20757905]
[1751542461778,0.9525318,109670.0,109660.0,0.193326]
[1751542462878,0.9525318,109670.0,109660.0,0.20757905]
[1751542463280,0.9525318,109670.0,109660.0,0.193326]
[1751542463979,0.9525318,109670.0,109660.0,0.20757905]
[1751542464180,1.19960717,109670.0,109660.0,0.193326]
[1751542465081,0.9525318,109670.0,109660.0,0.193326]
[1751542465482,0.9525318,109670.0,109660.0,0.20757905]
[1751542466077,0.9525318,109670.0,109660.0,0.193326]
[1751542466580,0.70545643,109670.0,109660.0,0.20757905]
[1751542466776,0.9525318,109670.0,109660.0,0.20757905]
[1751542468280,0.70545643,109670.0,109660.0,0.20757919]
[1751542468481,0.95253181,109670.0,109660.0,0.20757919]
[1751542469081,1.19960718,109670.0,109660.0,0.20757919]
[1751542469681,0.70545644,109670.0,109660.0,0.20757919]
[1751542469883,1.80461181,109670.0,109660.0,0.20757919]
[1751542471587,2.05168718,109670.0,109660.0,0.20757919]
[1751542472084,1.80461181,109670.0,109660.0,0.20757919]
[1751542473282,1.55753644,109670.0,109660.0,0.20757919]
[1751542473485,1.80461181,109670.0,109660.0,0.20757919]
[1751542475183,1.80461181,109670.0,109660.0,0.51757919]
[1751542475588,1.80461181,109670.0,109660.0,0.25757919]
[1751542475774,1.80461181,109670.0,109660.0,0.19757919]
[1751542476078,1.80461181,109670.0,109660.0,0.46757919]
[1751542477583,1.80461181,109670.0,109660.0,0.4818321]
[1751542479182,1.55753644,109670.0,109660.0,0.4818321]
[1751542479485,1.80461181,109670.0,109660.0,0.4818321]
[1751542482683,0.95253181,109670.0,109660.0,0.72890747]
[1751542482987,0.42714714,109670.0,109660.0,0.97598284]
[1751542483188,0.42714714,109670.0,109660.0,1.07118284]
[1751542483689,0.42714714,109670.0,109660.0,1.08187139]
[1751542483890,0.85652731,109670.0,109660.0,0.49252065]
[1751542484190,0.94842731,109670.0,109660.0,0.49252065]
[1751542485685,0.94842731,109670.0,109660.0,0.73959602]
[1751542486681,0.94842731,109670.0,109660.0,0.49252065]
[1751542487791,0.92647381,109670.0,109660.0,0.52898782]
[1751542488491,0.92647381,109670.0,109660.0,0.25898782]
[1751542488691,0.92647381,109670.0,109660.0,0.54898782]
[1751542489288,0.92647381,109670.0,109660.0,0.79606319]
[1751542489994,0.89517381,109670.0,109660.0,0.85986319]
[1751542490188,0.89517381,109670.0,109660.0,1.13973856]
[1751542490189,0.40519364,109670.0,109660.0,1.13973856]
[1751542490690,0.24707537,109690.0,109670.0,0.0455731]
[1751542490890,0.24707537,109690.0,109680.0,0.55150607]
[1751542490891,0.50229059,109690.0,109680.0,0.55150607]
[1751542491091,0.67001899,109690.0,109680.0,0.97392287]
[1751542491395,0.32001899,109690.0,109680.0,1.05229487]
[1751542491598,0.88229059,109690.0,109680.0,1.05229487]
[1751542492095,0.39101899,109690.0,109680.0,1.05229487]
[1751542492288,0.65101899,109690.0,109680.0,1.05229487]
[1751542492594,0.65101899,109690.0,109680.0,1.08876204]
[1751542493197,0.65201899,109690.0,109680.0,1.05229487]
[1751542493597,0.65201899,109690.0,109680.0,1.03744322]
[1751542493894,0.65301899,109690.0,109680.0,1.03844322]
[1751542494095,0.83529059,109690.0,109680.0,1.03844322]
[1751542495497,0.83629059,109690.0,109680.0,1.03844322]
[1751542496703,0.83629059,109690.0,109680.0,1.04745248]
[1751542496897,0.65401899,109690.0,109680.0,1.04745248]
[1751542497905,0.83629059,109690.0,109680.0,1.04745248]
[1751542498106,0.58921522,109690.0,109680.0,1.04745248]
[1751542498290,0.83629059,109690.0,109680.0,1.04745248]
[1751542498604,0.65401899,109690.0,109680.0,1.04745248]
[1751542498804,0.65401899,109690.0,109680.0,0.80037711]
[1751542499106,0.65401899,109690.0,109680.0,1.04745248]
[1751542499706,0.40694362,109690.0,109680.0,1.04745248]
[1751542499908,0.40694362,109690.0,109680.0,1.89541248]
[1751542500107,0.65401899,109690.0,109680.0,1.89541248]
[1751542500908,0.65401899,109690.0,109680.0,1.89540737]
[1751542502511,0.65401899,109690.0,109680.0,1.91017158]
[1751542503612,0.65401899,109690.0,109680.0,2.15724695]
[1751542504515,0.65401899,109690.0,109680.0,1.91017158]
[1751542504812,0.65401899,109690.0,109680.0,1.91011558]
[1751542505712,0.37401899,109690.0,109680.0,1.91011558]
[1751542505916,0.69401899,109690.0,109680.0,1.91011558]
[1751542506414,0.40694362,109690.0,109680.0,1.91011558]
[1751542506720,0.40694362,109690.0,109680.0,2.15719095]
[1751542506906,0.0623,109700.0,109690.0,0.1822716]
[1751542507109,0.53707537,109700.0,109690.0,0.82543651]
[1751542508116,0.29,109700.0,109690.0,0.82543651]
[1751542508311,0.53707537,109700.0,109690.0,0.82543651]
[1751542509214,0.61183085,109700.0,109690.0,0.82543651]
[1751542509515,0.36775548,109700.0,109690.0,0.79293651]
[1751542509818,0.61483085,109700.0,109690.0,0.79293651]
[1751542510119,0.61783085,109700.0,109690.0,0.79293651]
[1751542511521,0.37075548,109700.0,109690.0,0.79293651]
[1751542512020,0.37075548,109700.0,109690.0,0.82353651]
[1751542512220,0.61783085,109700.0,109690.0,0.82353651]
[1751542512416,0.37075548,109700.0,109690.0,0.82353651]
[1751542512621,0.106,109700.0,109690.0,1.502826]
[1751542512824,0.0963,109720.0,109710.0,0.1822383]
[1751542513122,0.70337537,109720.0,109710.0,0.72425016]
[1751542513318,0.70337537,109720.0,109710.0,0.75565016]
[1751542513520,0.77505697,109720.0,109710.0,0.75565016]
[1751542513917,0.5319816,109720.0,109710.0,0.54037479]
[1751542514322,0.5339816,109720.0,109710.0,0.54137479]
[1751542515424,0.96299245,109720.0,109710.0,0.54137479]
[1751542516421,0.96299245,109720.0,109710.0,0.53068772]
[1751542516918,0.7162033,109720.0,109710.0,0.53068772]
[1751542517125,0.5339816,109720.0,109710.0,0.53068772]
[1751542517318,0.78077075,109720.0,109710.0,0.53068772]
[1751542518326,0.7162033,109720.0,109710.0,0.53068772]
[1751542518624,0.78077075,109720.0,109710.0,0.53068772]
[1751542519026,0.96299245,109720.0,109710.0,0.53068772]
[1751542519620,0.96299245,109720.0,109710.0,0.54137186]
[1751542519931,0.7162033,109720.0,109710.0,0.54137186]
[1751542520120,0.96299245,109720.0,109710.0,0.54137186]
[1751542521025,0.96299245,109720.0,109710.0,0.50997186]
[1751542521219,0.7162033,109720.0,109710.0,0.50997186]
[1751542521521,0.96299245,109720.0,109710.0,0.50997186]
[1751542521722,0.7162033,109720.0,109710.0,0.50997186]
[1751542522118,0.96299245,109720.0,109710.0,0.50997186]
[1751542523433,0.5339816,109720.0,109710.0,0.50997186]
[1751542523633,0.78077075,109720.0,109710.0,0.50997186]
[1751542524135,0.5339816,109720.0,109710.0,0.50997186]
[1751542524434,0.78077075,109720.0,109710.0,0.54147186]
[1751542524627,0.5339816,109720.0,109710.0,0.78826101]
[1751542524934,0.5016816,109720.0,109710.0,0.78826101]